[Event "DVM U14 2024"]
[Site "Heidelberg"]
[Date "2024.12.28"]
[Round "4"]
[White "Mosch, Cornelius"]
[Black "Freude, Paul"]
[Result "0-1"]
[ECO "B22"]
[WhiteElo "1405"]
[BlackElo "1714"]
[Annotator "NA RC"]
[PlyCount "58"]
[EventDate "2024.12.23"]
[EventType "team-tourn"]
[EventRounds "7"]
[EventCountry "GER"]
[SourceTitle "playchess.com"]
[Source "ChessBase"]
[SourceQuality "1"]
[TimeControl "40/5400+30:1800+30"]

1. e4 {[%emt 0:00:02]} c5 {[%emt 0:00:03]} 2. c3 {[%emt 0:00:12]} Nf6 {[%emt 0:00:13]} 3. e5 {[%emt 0:00:04]} Nd5 {[%emt 0:00:05]} 4. Nf3 {[%emt 0:00:16]} e6 {[%emt 0:00:40]} 5. d4 {[%emt 0:00:12]} cxd4 {[%emt 0:01:03]} 6. cxd4 {[%emt 0:00:13]} b6 {[%emt 0:00:37]} 7. Nc3 {[%emt 0:00:23]} Nxc3 {[%emt 0:00:05]} 8. bxc3 {[%emt 0:00:04]} Qc7 {[%emt 0:00:05]} 9. Bd2 {[%emt 0:00:30]} Bb7 {[%emt 0:00:13]} 10. Bd3 {[%emt 0:00:29]} d6 {[%emt 0:00:15]} 11. O-O {[%emt 0:00:25]} Nd7 {[%emt 0:00:05]} 12. a4 {[%emt 0:00:25]} dxe5 {[%emt 0:00:37]} 13. dxe5 {[%emt 0:00:49]} Bc5 {[%emt 0:01:25]} 14. Re1 {[%emt 0:01:33]} O-O {[%emt 0:00:31]} 15. Qc2 {[%emt 0:00:51]} h6 {[%emt 0:01:32]} 16. Be4 {[%emt 0:00:17]} Rfd8 {[%emt 0:03:18]} 17. Rab1 {[%emt 0:02:00]} Nf8 {[%emt 0:03:26]} 18. Be3 {[%emt 0:12:06]} Bxe4 {[%emt 0:04:21]} 19. Qxe4 {[%emt 0:00:35]} Bxe3 {[%emt 0:04:19]} 20. Qxe3 {[%emt 0:00:25]} Rac8 {[%emt 0:00:14]} 21. Nd4 {[%emt 0:00:54]} a6 {[%emt 0:21:33]} 22. Ne2 {[%emt 0:00:54]} Nd7 {[%emt 0:02:20]} 23. h3 {[%emt 0:16:17]} Nc5 {[%emt 0:01:25]} 24. Qf4 {[%emt 0:02:08]} Nd3 {[%emt 0:01:07]} 25. Qg3 {[%emt 0:03:28]} Nxe1 26. Rxe1 {[%emt 0:00:03]} Rd5 {[%emt 0:03:30]} 27. Rf1 {[%emt 0:11:28]} Qxe5 {[%emt 0:00:14]} 28. Nf4 {[%emt 0:00:18]} Rxc3 {[%emt 0:01:52]} 29. Qg4 {[%emt 0:06:14]} h5 {[%emt 0:02:21]} 0-1

[Event "DVM U14 2024"]
[Site "Heidelberg"]
[Date "2024.12.28"]
[Round "4"]
[White "Zhou, Louis Yuchen"]
[Black "Sosnicki, Adrian"]
[Result "0-1"]
[ECO "B02"]
[WhiteElo "1215"]
[BlackElo "1259"]
[Annotator "NA RC"]
[PlyCount "66"]
[EventDate "2024.12.23"]
[EventType "team-tourn"]
[EventRounds "7"]
[EventCountry "GER"]
[SourceTitle "playchess.com"]
[Source "ChessBase"]
[SourceQuality "1"]
[TimeControl "40/5400+30:1800+30"]

1. e4 {[%emt 0:00:09]} d5 {[%emt 0:00:04]} 2. exd5 {[%emt 0:00:07]} Nf6 {[%emt 0:00:04]} 3. Nf3 {[%emt 0:00:28]} Nxd5 {[%emt 0:00:57]} 4. d4 {[%emt 0:01:21]} Bf5 {[%emt 0:02:02]} 5. Nc3 {[%emt 0:01:36]} e6 {[%emt 0:04:54]} 6. a3 {[%emt 0:00:48]} c5 {[%emt 0:02:31]} 7. Bc4 {[%emt 0:05:18]} Nc6 {[%emt 0:17:53]} 8. Bb5 {[%emt 0:06:32]} Qc7 {[%emt 0:06:13]} 9. Qe2 {[%emt 0:07:23]} O-O-O {[%emt 0:09:00]} 10. Bxc6 {[%emt 0:02:32]} Qxc6 {[%emt 0:03:48]} 11. Ne5 {[%emt 0:01:03]} Qe8 {[%emt 0:08:47]} 12. dxc5 {[%emt 0:03:45]} Nxc3 {[%emt 0:01:51]} 13. bxc3 {[%emt 0:02:00]} Rd5 {[%emt 0:03:05]} 14. c6 {[%emt 0:05:03]} Bxc2 {[%emt 0:09:09]} 15. cxb7+ {[%emt 0:02:07]} Kxb7 {[%emt 0:00:38]} 16. Qxc2 {[%emt 0:06:56]} Rxe5+ {[%emt 0:00:09]} 17. Be3 {[%emt 0:00:15]} Bc5 {[%emt 0:03:11]} 18. Rb1+ {[%emt 0:01:13]} Kc7 {[%emt 0:03:56]} 19. Ke2 {[%emt 0:05:44]} f5 {[%emt 0:01:10]} 20. Kd1 {[%emt 0:05:03]} Qh5+ {[%emt 0:03:34]} 21. Kc1 {[%emt 0:01:10]} Bxa3+ {[%emt 0:01:10]} 22. Kd2 {[%emt 0:01:37]} Rd8+ {[%emt 0:00:42]} 23. Ke1 {[%emt 0:01:51]} f4 {[%emt 0:00:31]} 24. Qa4 {[%emt 0:00:33]} Bc5 {[%emt 0:00:45]} 25. Qa5+ {[%emt 0:00:27]} Bb6 {[%emt 0:00:13]} 26. Qb4 {[%emt 0:01:32]} fxe3 {[%emt 0:00:43]} 27. Qc4+ {[%emt 0:01:44]} Kb7 {[%emt 0:01:48]} 28. f3 {[%emt 0:01:04]} Qg6 {[%emt 0:01:24]} 29. Rb2 {[%emt 0:03:14]} Rd2 {[%emt 0:01:31]} 30. Qb4 {[%emt 0:01:37]} Red5 {[%emt 0:01:55]} 31. Qe7+ {[%emt 0:00:36]} Rd7 {[%emt 0:00:20]} 32. Qb4 {[%emt 0:00:27]} Rd1+ {[%emt 0:00:19]} 33. Ke2 {[%emt 0:00:06]} Qxg2# {[%emt 0:00:07]} 0-1

[Event "DVM U14 2024"]
[Site "Heidelberg"]
[Date "2024.12.28"]
[Round "4"]
[White "Nawrath, Lars"]
[Black "Popitz, Paul"]
[Result "0-1"]
[ECO "D02"]
[WhiteElo "1189"]
[BlackElo "1449"]
[Annotator "NA RC"]
[PlyCount "64"]
[EventDate "2024.12.23"]
[EventType "team-tourn"]
[EventRounds "7"]
[EventCountry "GER"]
[SourceTitle "playchess.com"]
[Source "ChessBase"]
[SourceQuality "1"]
[TimeControl "40/5400+30:1800+30"]

1. d4 {[%emt 0:00:04]} d5 {[%emt 0:00:08]} 2. Bf4 {[%emt 0:00:03]} Nf6 {[%emt 0:00:06]} 3. e3 {[%emt 0:00:15]} c5 {[%emt 0:00:16]} 4. c3 {[%emt 0:00:06]} Nc6 {[%emt 0:00:32]} 5. Nd2 {[%emt 0:00:34]} Qb6 {[%emt 0:02:16]} 6. Qb3 {[%emt 0:00:05]} e6 {[%emt 0:03:57]} 7. Ngf3 {[%emt 0:02:49]} c4 {[%emt 0:01:15]} 8. Qc2 {[%emt 0:00:06]} Ne7 {[%emt 0:01:55]} 9. h3 {[%emt 0:00:32]} Ng6 {[%emt 0:00:29]} 10. Bh2 {[%emt 0:00:05]} Bd6 {[%emt 0:02:08]} 11. Ne5 {[%emt 0:00:07]} Qc7 {[%emt 0:04:06]} 12. f4 {[%emt 0:00:52]} b5 {[%emt 0:02:09]} 13. a3 {[%emt 0:00:16]} Nd7 {[%emt 0:01:48]} 14. Nxd7 {[%emt 0:00:29]} Bxd7 {[%emt 0:00:19]} 15. Nf3 {[%emt 0:00:25]} a5 {[%emt 0:02:50]} 16. Be2 {[%emt 0:03:17]} O-O {[%emt 0:02:46]} 17. O-O {[%emt 0:00:25]} b4 {[%emt 0:00:59]} 18. axb4 {[%emt 0:00:16]} axb4 {[%emt 0:00:15]} 19. Ne5 {[%emt 0:03:13]} b3 {[%emt 0:07:24]} 20. Qb1 {[%emt 0:00:45]} Nxe5 {[%emt 0:01:55]} 21. fxe5 {[%emt 0:00:17]} Be7 {[%emt 0:00:19]} 22. Bf4 {[%emt 0:07:29]} Rxa1 {[%emt 0:03:12]} 23. Qxa1 {[%emt 0:00:09]} Qb7 {[%emt 0:00:06]} 24. Qb1 {[%emt 0:12:18]} Ra8 {[%emt 0:00:19]} 25. Bf3 {[%emt 0:00:32]} Bc6 {[%emt 0:00:50]} 26. Re1 {[%emt 0:03:11]} Ra2 {[%emt 0:02:23]} 27. e4 {[%emt 0:02:16]} dxe4 {[%emt 0:01:42]} 28. Bxe4 {[%emt 0:00:17]} Bxe4 {[%emt 0:00:06]} 29. Rxe4 {[%emt 0:00:03]} Rxb2 {[%emt 0:01:06]} 30. Qxb2 {[%emt 0:00:13]} Qxe4 {[%emt 0:00:07]} 31. Qa1 {[%emt 0:02:41]} Qxf4 {[%emt 0:00:37]} 32. Qa8+ {[%emt 0:00:06]} Bf8 {[%emt 0:00:08]} 0-1